bitfinex/quotes_ETHUSD_20220731
["timestamp","ask_amount","ask_price","bid_price","bid_amount"]
[1659240501049,3.3519,1697.1,1696.5,4.2445667]
[1659240501212,3.3019,1697.1,1696.8,0.2]
[1659240501546,4.05,1697.4,1696.8,0.2]
[1659240501751,10.7106,1697.4,1696.8,0.2]
[1659240502252,14.2106,1697.4,1696.8,0.2]
[1659240502404,9.6106,1697.4,1696.8,0.2]
[1659240502604,9.6106,1697.4,1696.8,0.3020667]
[1659240502605,6.1106,1697.4,1696.8,0.3020667]
[1659240503050,6.35324765,1697.4,1696.8,3.20011342]
[1659240503233,6.35324765,1697.4,1696.9,2.89804672]
[1659240504469,6.95324765,1697.4,1696.9,2.89804672]
[1659240507497,6.95324765,1697.4,1696.7,0.4925]
[1659240507498,9.84034672,1697.3,1696.7,0.05]
[1659240507790,6.69804672,1697.2,1696.5,0.05]
[1659240507957,6.84044672,1697.1,1696.4,0.05]
[1659240508150,6.19804672,1697.0,1696.3,0.05]
[1659240508356,6.19804672,1697.0,1696.2,11.2875]
[1659240508357,0.00114479,1696.3,1696.2,10.8949]
[1659240508614,0.00114479,1696.3,1696.2,10.8449]
[1659240508815,0.00114479,1696.3,1696.2,7.9701]
[1659240509022,0.00114479,1696.3,1696.0,3.9427]
[1659240509327,0.00114479,1696.3,1695.9,2.8715]
[1659240509328,0.00114479,1696.3,1695.9,11.2843]
[1659240509482,0.00114479,1696.3,1695.9,7.9701]
[1659240511330,0.00114479,1696.3,1695.9,10.86814672]
[1659240514428,0.00114479,1696.3,1695.9,14.36814672]
[1659240516850,0.00114479,1696.3,1696.0,2.89804672]
[1659240517059,0.00114479,1696.3,1696.0,6.2141264]
[1659240518234,0.00114479,1696.3,1696.1,0.1020667]
[1659240518871,0.00114479,1696.3,1696.1,3.00011342]
[1659240520246,0.00114479,1696.3,1696.1,0.1020667]
[1659240524250,0.00114479,1696.3,1696.2,10.59804672]
[1659240524585,0.00114479,1696.3,1696.2,20.52059209]
[1659240524887,0.00114479,1696.3,1696.2,27.33517645]
[1659240525239,0.00114479,1696.3,1696.2,18.11663108]
[1659240525436,0.00114479,1696.3,1696.2,17.94064672]
[1659240526260,0.00114479,1696.3,1696.2,9.84064672]
[1659240526554,0.00114479,1696.3,1696.2,5.89804672]
[1659240528544,0.00114479,1696.3,1696.2,3.0]
[1659240528744,0.00114479,1696.3,1696.1,3.1020667]
[1659240528981,0.00114479,1696.3,1696.1,6.30011342]
[1659240530278,0.00114479,1696.3,1696.1,3.00011342]
[1659240537907,0.00114479,1696.3,1696.1,6.50011342]
[1659240539530,0.00114479,1696.3,1696.2,19.89404672]
[1659240539714,0.00114479,1696.3,1696.2,15.01663108]
[1659240539918,0.00114479,1696.3,1696.2,18.15594495]
[1659240540525,0.05,1696.7,1696.3,5.60296731]
[1659240540706,0.05,1696.9,1696.4,9.99804672]
[1659240541025,0.05,1697.1,1696.5,2.89804672]
[1659240541262,0.29264765,1697.2,1696.5,2.89804672]
[1659240541435,0.24264765,1697.2,1696.5,3.20011342]
[1659240541590,0.24264765,1697.2,1696.6,2.89804672]
[1659240542739,0.24264765,1697.2,1696.6,6.39804672]
[1659240543097,0.24264765,1697.2,1696.7,0.2]
[1659240545449,0.24264765,1697.2,1696.6,2.89804672]
[1659240545815,3.14069437,1697.2,1696.5,0.1020667]
[1659240546016,3.58299437,1697.2,1696.5,0.1020667]
[1659240546919,3.14069437,1697.2,1696.5,0.1020667]
[1659240547252,3.19804672,1697.1,1696.5,0.1020667]
[1659240547463,3.64044672,1697.1,1696.5,0.1020667]
[1659240547646,2.89804672,1697.0,1696.5,0.1020667]
[1659240547964,0.7424,1696.9,1696.4,7.9573]
[1659240548119,1.0424,1696.9,1696.4,7.9573]
[1659240550150,0.3,1696.9,1696.4,7.9573]
[1659240550351,0.3,1696.9,1696.4,8.0593667]
[1659240550598,10.75534672,1697.0,1696.4,8.0593667]
[1659240550996,0.4923,1697.2,1696.5,2.89804672]
[1659240551206,0.4923,1697.2,1696.6,3.1020667]
[1659240551207,0.24264765,1697.2,1696.6,3.1020667]
[1659240551501,3.74264765,1697.2,1696.6,6.00011342]
[1659240551708,0.24264765,1697.2,1696.6,6.00011342]
[1659240552291,0.24264765,1697.2,1696.6,3.1020667]
[1659240552607,8.24264765,1697.2,1696.6,0.1020667]
[1659240553775,3.5,1697.1,1696.6,0.1020667]
[1659240553962,8.24264765,1697.2,1696.6,0.1020667]
[1659240554763,4.74264765,1697.2,1696.6,3.00011342]
[1659240555005,0.05,1697.4,1696.7,6.65369786]
[1659240555208,4.2923,1697.5,1696.8,3.00011342]
[1659240555362,4.2423,1697.5,1696.8,3.00011342]
[1659240555767,3.8,1697.5,1696.8,3.00011342]
[1659240556005,3.8,1697.5,1696.7,0.05]
[1659240556006,3.19804672,1697.4,1696.7,0.05]
[1659240556165,3.19804672,1697.4,1696.6,0.05]
[1659240556166,10.67434672,1697.3,1696.6,0.05]
[1659240556364,9.93204672,1697.2,1696.5,0.05]
[1659240556567,9.84044672,1697.1,1696.4,0.05]
[1659240556821,3.19804672,1697.0,1696.3,0.05090061]
[1659240556967,8.65914672,1696.9,1696.3,0.00090061]
[1659240557164,0.6,1696.8,1696.3,0.00090061]
[1659240557368,0.05,1697.0,1696.7,0.2]
[1659240557582,3.6,1697.2,1696.7,0.2]
[1659240557780,0.3,1697.2,1696.7,0.2]
[1659240558764,0.54264765,1697.2,1696.7,0.2]
[1659240559411,0.24264765,1697.2,1696.7,0.2]
[1659240559567,16.8011,1697.3,1697.1,0.2]
[1659240559766,5.9714,1697.3,1697.1,0.2]
[1659240560818,5.9714,1697.3,1696.9,0.1020667]
[1659240561841,5.9714,1697.3,1697.1,0.2]
[1659240563309,5.9714,1697.3,1696.9,0.1020667]
[1659240565105,5.9714,1697.3,1696.9,0.09937272]
[1659240566551,5.9714,1697.3,1697.1,0.2]
[1659240567256,0.24264765,1697.4,1697.1,0.2]
[1659240567543,20.7709,1697.6,1697.1,0.2]
[1659240567775,20.77359398,1697.6,1697.1,0.2]
[1659240568943,20.17359398,1697.6,1697.1,0.2]
[1659240569468,20.17359398,1697.6,1697.0,0.09937272]
[1659240569668,20.17359398,1697.6,1697.0,2.99741944]
[1659240570630,20.17359398,1697.6,1697.0,2.89741944]
[1659240572739,20.17359398,1697.6,1697.0,2.90309048]
[1659240574728,20.17359398,1697.6,1697.0,0.00567104]
[1659240574970,20.61579398,1697.6,1697.0,0.00567104]
[1659240575843,3.5,1697.5,1697.0,0.00567104]
[1659240576042,0.3,1697.5,1697.0,0.00567104]
[1659240576488,0.64202037,1697.5,1697.0,0.00567104]
[1659240577885,4.58432037,1697.5,1697.0,0.00567104]
[1659240578047,1.08432037,1697.5,1697.0,0.00567104]
[1659240580243,0.64202037,1697.5,1697.0,2.90371776]
[1659240581373,0.64202037,1697.5,1697.1,0.2]
[1659240582861,0.64202037,1697.5,1696.8,7.8017]
[1659240582862,4.14202037,1697.5,1696.8,7.8017]
[1659240583066,3.5,1697.4,1696.8,10.64974672]
[1659240583303,3.5,1697.4,1696.8,7.7517]
[1659240583304,0.00269398,1697.3,1696.8,7.7517]
[1659240584467,0.00269398,1697.3,1696.8,10.64974672]
[1659240585699,0.00269398,1697.3,1696.8,10.84974672]
[1659240585877,0.4923,1697.5,1696.9,5.89804672]
[1659240586076,0.05,1697.7,1697.3,0.2]
[1659240586293,6.7288,1697.9,1697.1,6.59804672]
[1659240586294,6.3366,1697.9,1697.5,0.2]
[1659240586503,6.2866,1697.9,1697.5,0.2]
[1659240586681,3.3284,1697.9,1697.5,3.09804672]
[1659240586879,5.82212307,1698.1,1697.5,3.09804672]
[1659240586880,5.82212307,1698.1,1697.6,2.89804672]
[1659240587086,9.12772307,1698.1,1697.6,2.89804672]
[1659240587300,9.1243,1698.1,1697.6,2.89804672]
[1659240587685,6.345,1698.1,1697.6,2.89804672]
[1659240588571,0.34471435,1698.0,1697.6,2.89804672]
[1659240589772,0.34471435,1698.0,1697.4,2.89804672]
[1659240591443,0.34471435,1698.0,1697.4,2.89454208]
[1659240592014,0.34471435,1698.0,1697.4,6.39454208]
[1659240592214,0.34471435,1698.0,1697.4,2.89454208]
[1659240595402,3.84471435,1698.0,1697.4,2.89454208]
[1659240595605,0.34471435,1698.0,1697.4,2.89454208]
[1659240598791,3.84471435,1698.0,1697.4,2.89454208]
[1659240599417,0.34471435,1698.0,1697.4,2.89454208]
[1659240601994,0.34471435,1698.0,1697.4,3.33684208]
[1659240602239,0.34471435,1698.0,1697.5,2.89804672]
[1659240603110,9.6086,1698.1,1697.6,3.5]
[1659240603111,3.3056,1698.1,1697.6,3.5]
[1659240603312,0.4421,1698.3,1697.9,0.2]
[1659240603313,0.05,1698.3,1697.9,0.2]
[1659240603546,7.9823,1698.4,1697.9,0.2]
[1659240606364,7.9823,1698.4,1697.9,3.09804672]
[1659240607523,7.9823,1698.4,1697.9,0.2]
[1659240609534,7.9823,1698.4,1697.7,11.5272]
[1659240609735,7.9823,1698.4,1697.7,8.2772]
[1659240609736,3.68486107,1698.3,1697.7,8.2772]
[1659240609952,3.68486107,1698.3,1697.5,0.05]
[1659240609953,2.89804672,1698.2,1697.5,0.05]
[1659240610173,2.8939,1698.1,1697.4,10.6654]
[1659240610375,3.336,1698.1,1697.4,13.51344672]
[1659240610553,0.34471435,1698.0,1697.4,13.51344672]
[1659240610736,0.34471435,1698.0,1697.4,10.60794672]
[1659240612583,3.99014672,1698.2,1697.7,0.2]
[1659240612584,0.4921,1698.2,1697.7,0.2]
[1659240612784,3.0582,1698.3,1697.8,6.21080778]
[1659240614143,6.5582,1698.3,1697.8,6.21080778]
[1659240614389,6.5582,1698.3,1697.8,6.20790836]
[1659240614545,3.0582,1698.3,1697.8,6.20790836]
[1659240615367,3.0582,1698.3,1697.6,0.05]
[1659240615544,6.5582,1698.3,1697.7,2.89804672]
[1659240615743,3.0582,1698.3,1697.7,2.89804672]
[1659240616363,5.8796,1698.3,1697.7,2.89804672]
[1659240616900,9.3796,1698.3,1697.7,2.89804672]
[1659240617193,5.8796,1698.3,1697.7,2.89804672]
[1659240618647,5.8796,1698.3,1697.9,0.2]
[1659240621902,5.8796,1698.3,1697.7,2.89804672]
[1659240622685,6.22431435,1698.3,1697.7,2.89804672]
[1659240626604,0.4421,1698.2,1697.7,2.89804672]
[1659240626990,6.9217,1698.3,1697.7,2.89804672]
[1659240627189,9.81974672,1698.3,1697.5,12.91214672]
[1659240627416,9.81974672,1698.3,1697.5,12.41984672]
[1659240629058,9.81974672,1698.3,1697.5,8.91984672]
[1659240629257,9.81974672,1698.3,1697.5,12.41984672]
[1659240630340,0.34471435,1698.2,1697.5,12.41984672]
[1659240630540,0.34471435,1698.2,1697.5,8.91984672]
[1659240630859,0.34471435,1698.2,1697.5,5.41984672]
[1659240634790,0.64471435,1698.2,1697.5,5.41984672]
[1659240639288,2.89804672,1698.1,1697.4,10.7599]
[1659240639450,2.89804672,1698.1,1697.4,7.7099]
[1659240639451,3.34014672,1698.1,1697.4,7.7099]
[1659240640095,3.34014672,1698.1,1697.3,6.4508]
[1659240640096,6.39804672,1698.0,1697.3,0.05]
[1659240640272,6.39804672,1698.0,1697.2,0.05]
[1659240640273,5.09140552,1697.3,1697.2,0.05]
[1659240640488,5.09140552,1697.3,1696.8,0.05]
[1659240640693,5.09140552,1697.3,1696.7,7.8217]
[1659240640694,5.10240552,1697.3,1696.7,7.8217]
[1659240641857,7.83210552,1697.3,1696.7,7.8217]
[1659240643107,0.34471435,1697.2,1696.7,7.8217]
[1659240644131,3.24276107,1697.2,1696.5,0.05]
[1659240644422,3.68506107,1697.2,1696.5,3.0]
[1659240644714,7.18506107,1697.2,1696.5,3.0]
[1659240644921,7.18506107,1697.2,1696.4,0.05]
[1659240644922,6.99804672,1697.1,1696.4,0.05]
[1659240645109,6.99804672,1697.1,1696.3,0.05090061]
[1659240645110,13.04472177,1697.0,1696.3,0.05090061]
[1659240645419,0.00204669,1696.4,1696.3,0.00090061]
[1659240646228,0.00204669,1696.4,1696.3,0.63490061]
[1659240650181,0.34471435,1696.7,1696.4,0.00051565]
[1659240660362,0.00182531,1696.4,1696.3,0.00504716]
[1659240660589,0.59082531,1696.4,1696.3,0.00090061]
[1659240660757,4.10182531,1696.4,1696.3,0.00090061]
[1659240660958,0.30182531,1696.4,1696.3,0.00090061]
[1659240661551,3.10852531,1696.4,1696.3,0.00090061]
[1659240661777,3.40852531,1696.4,1696.3,0.00090061]
[1659240664187,3.75323966,1696.4,1696.3,0.00090061]
[1659240666800,4.19583966,1696.4,1696.3,0.00090061]
[1659240667645,3.75323966,1696.4,1696.3,0.00090061]
[1659240674990,3.15323966,1696.4,1696.3,0.63490061]
[1659240675220,0.00182531,1696.4,1696.3,0.63490061]
[1659240675501,0.00182531,1696.4,1696.3,0.834]
[1659240676312,0.00182531,1696.4,1696.3,0.634]
[1659240677097,2.77092531,1696.6,1696.3,0.634]
[1659240677308,3.1299,1696.8,1696.3,0.634]
[1659240696469,3.05161435,1696.9,1696.4,3.09804672]
[1659240696672,3.05161435,1696.9,1696.4,9.91334495]
[1659240697991,3.05161435,1696.9,1696.4,6.59804672]
[1659240698176,3.05161435,1696.9,1696.4,0.2]
[1659240698366,3.05161435,1696.9,1696.4,3.7]
[1659240698592,3.05161435,1696.9,1696.4,0.2]
[1659240699386,3.05161435,1696.9,1696.4,0.15]
[1659240699538,3.05161435,1696.9,1696.3,0.00677099]
[1659240699825,3.05161435,1696.9,1696.3,2.90481771]
[1659240703818,3.05161435,1696.9,1696.4,3.5]
[1659240706657,3.05161435,1696.9,1696.3,2.90481771]
[1659240707069,3.05161435,1696.9,1696.4,3.5]
[1659240707537,3.05161435,1696.9,1696.3,2.90481771]
[1659240707737,3.05161435,1696.9,1696.4,3.5]
[1659240709437,3.05161435,1696.9,1696.3,2.90481771]
[1659240709677,3.05161435,1696.9,1696.4,3.5]
[1659240711000,3.05161435,1696.9,1696.3,2.90481771]
[1659240711496,3.05161435,1696.9,1696.4,3.5]
[1659240712787,3.05161435,1696.9,1696.3,2.90481771]
[1659240713002,3.05161435,1696.9,1696.3,0.00677099]
[1659240714022,3.00161435,1696.9,1696.3,0.00677099]
[1659240714993,3.05161435,1696.9,1696.3,0.00677099]
[1659240718007,3.05161435,1696.9,1696.3,0.05677098]
[1659240720897,3.00161435,1696.9,1696.3,3.55677098]
[1659240721324,3.00161435,1696.9,1696.3,6.4548177]
[1659240721509,3.00161435,1696.9,1696.4,6.54804672]
[1659240721510,2.7069,1696.9,1696.4,6.54804672]
[1659240721689,2.7069,1696.9,1696.5,0.04999999]
[1659240722624,3.2796,1697.0,1696.5,3.09804671]
[1659240722837,0.05,1697.2,1697.1,3.65]
[1659240723019,0.00240552,1697.3,1697.1,6.59804671]
[1659240723221,0.00240552,1697.3,1697.2,3.04804672]
[1659240723446,0.00240552,1697.3,1697.2,9.84804672]
[1659240723644,0.00240552,1697.3,1697.2,10.29034672]
[1659240724032,0.00240552,1697.3,1697.2,18.11104672]
[1659240724612,0.00240552,1697.3,1697.2,13.86874672]
[1659240724812,0.00240552,1697.3,1697.2,13.71874672]
[1659240725013,0.00240552,1697.3,1697.2,17.21874672]
[1659240725261,0.00240552,1697.3,1697.2,17.22551412]
[1659240725945,0.00240552,1697.3,1697.2,13.72551412]
[1659240726147,0.00240552,1697.3,1697.2,0.0067674]
[1659240726148,0.59140552,1697.3,1697.2,0.0067674]
[1659240726376,0.59140552,1697.3,1696.8,0.05]
[1659240726576,0.59140552,1697.3,1696.6,0.05]
[1659240726789,9.67905224,1697.3,1696.5,0.05]
[1659240726939,0.29471435,1697.2,1696.4,2.4873]
[1659240727142,0.29471435,1697.2,1696.4,8.83534672]
[1659240727386,0.29471435,1697.2,1696.5,0.04999999]
[1659240728359,0.29471435,1697.2,1696.5,3.04999999]
[1659240729148,2.89804672,1697.1,1696.5,0.04999999]
[1659240729346,0.29471435,1697.0,1696.5,0.04999999]
[1659240733893,6.0471,1697.1,1696.5,0.04999999]
[1659240742246,6.34181435,1697.1,1696.5,0.04999999]
[1659240744599,9.84181435,1697.1,1696.5,0.04999999]
[1659240745590,6.34181435,1697.1,1696.5,0.04999999]
[1659240745755,9.84181435,1697.1,1696.5,0.04999999]
[1659240746353,9.84181435,1697.1,1696.4,3.4]
[1659240746354,6.0926024,1696.5,1696.4,0.1]
[1659240746801,6.0926024,1696.5,1696.0,0.05]
[1659240746802,5.5,1696.4,1696.0,0.05]
[1659240747094,9.2269,1696.4,1695.8,11.5]
[1659240748174,9.2269,1696.4,1695.8,14.39804672]
[1659240748501,9.2269,1696.4,1695.8,2.89804672]
[1659240748724,9.2269,1696.4,1695.9,0.04999999]
[1659240749839,3.7269,1696.4,1695.9,0.04999999]
[1659240750026,0.0036024,1696.5,1696.2,0.15]
[1659240750214,0.0036024,1696.5,1696.3,0.04999999]
[1659240750416,0.0036024,1696.5,1696.3,3.36549354]
[1659240752604,0.0036024,1696.5,1696.3,0.04999999]
[1659240758261,0.0036024,1696.5,1696.1,3.0]
[1659240760530,0.0036024,1696.5,1696.0,3.34999999]
[1659240760758,0.0036024,1696.5,1696.0,6.24804671]
[1659240768978,0.0036024,1696.5,1696.0,3.04999999]
[1659240769154,0.0036024,1696.5,1696.0,0.04999999]
[1659240787260,3.5036024,1696.5,1696.0,0.04999999]
[1659240787474,0.0036024,1696.5,1696.0,0.04999999]
[1659240787854,3.5036024,1696.5,1696.0,0.04999999]
[1659240788059,0.0036024,1696.5,1696.0,0.04999999]
[1659240799971,0.0036024,1696.5,1696.1,2.89804672]
[1659240800203,0.0036024,1696.5,1696.3,0.15]
[1659240800407,0.0002628,1696.5,1696.4,3.04804672]
[1659240801183,0.0002628,1696.5,1696.4,3.09804671]
[1659240802822,0.0002628,1696.5,1696.4,2.94804671]
[1659240804683,0.5892628,1696.5,1696.4,0.04999999]
[1659240804887,0.5892628,1696.5,1696.0,0.05]
[1659240804888,4.0892628,1696.5,1696.0,0.05]
[1659240805089,4.0892628,1696.5,1695.9,7.7545]
[1659240805090,0.0002628,1696.5,1695.9,7.7545]
[1659240805289,2.98850213,1696.4,1696.1,0.00253358]
[1659240805489,0.29471435,1696.4,1696.1,0.00253358]
[1659240806082,0.29471435,1696.4,1695.9,7.7545]
[1659240808083,0.73731435,1696.4,1695.9,7.7545]
[1659240808282,0.29471435,1696.4,1695.9,7.7545]
[1659240811148,3.79471435,1696.4,1695.8,0.04999999]
[1659240811318,3.79471435,1696.4,1695.6,5.3518]
[1659240811319,9.84286107,1696.4,1695.6,5.3518]
[1659240811518,9.89024672,1696.3,1695.6,2.903]
[1659240811733,9.89024672,1696.3,1695.5,0.05]
[1659240811933,3.5,1696.2,1695.5,2.89804672]
[1659240812225,6.39804672,1696.2,1695.4,13.81994672]
[1659240812430,6.39804672,1696.2,1695.4,13.76994672]
[1659240813351,6.39804672,1696.2,1695.5,3.0]
[1659240814570,2.89804672,1696.2,1695.5,3.0]
[1659240815076,2.89804672,1696.2,1695.5,3.00215954]
[1659240815244,6.69276107,1696.2,1695.5,3.00215954]
[1659240816021,6.69276107,1696.2,1695.5,3.0]
[1659240816275,3.19276107,1696.2,1695.5,3.00215954]
[1659240816520,6.69276107,1696.2,1695.5,3.00215954]
[1659240816697,3.19276107,1696.2,1695.5,3.00215954]
[1659240817179,6.69276107,1696.2,1695.5,3.0]
[1659240817374,6.69276107,1696.2,1695.5,3.04999999]
[1659240817599,6.69276107,1696.2,1695.5,3.05215953]
[1659240818121,0.29471435,1696.2,1695.5,5.95020625]
[1659240818300,0.29471435,1696.2,1695.7,0.15]
[1659240818472,0.29471435,1696.2,1695.7,3.04804672]
[1659240818671,0.29471435,1696.2,1695.8,0.04999999]
[1659240821275,0.29176178,1696.2,1695.8,0.04999999]
[1659240822480,3.79176178,1696.2,1695.5,5.4313]
[1659240822681,3.79176178,1696.2,1695.5,5.3813]
[1659240823000,0.05,1695.8,1695.4,0.05]
[1659240823209,1.0427,1695.7,1695.1,0.05]
[1659240823395,6.3665,1695.6,1695.0,0.3]
[1659240823601,3.5,1695.5,1695.0,0.3]
[1659240823823,0.7428,1695.5,1695.0,0.3]
[1659240824034,4.2428,1695.5,1695.0,0.3]
[1659240824748,3.5,1695.4,1695.0,0.3]
[1659240824952,3.79176178,1695.4,1695.0,0.3]
[1659240825104,0.4428,1695.3,1695.0,0.3]
[1659240825306,6.39804672,1695.2,1695.0,0.3]
[1659240825607,4.0428,1695.3,1695.0,0.05500724]
[1659240825608,6.72366178,1695.1,1695.0,0.05500724]
[1659240825850,3.88076178,1695.1,1695.0,0.05500724]
[1659240826007,6.88076178,1695.1,1695.0,0.05500724]
[1659240826804,2.989,1695.1,1695.0,0.68900724]
[1659240828204,3.3559,1695.3,1695.0,0.68900724]
[1659240828433,0.3,1695.3,1695.0,0.68900724]
[1659240828623,10.16856178,1695.4,1695.0,0.05500724]
[1659240829245,0.59176178,1695.4,1695.1,0.15]
[1659240829451,9.7663,1695.6,1695.1,3.04804672]
[1659240829452,12.0396,1695.6,1695.1,3.04804672]
[1659240829632,11.5968,1695.6,1695.3,0.15]
[1659240830169,0.4427,1695.7,1695.3,0.15]
[1659240830356,6.339,1695.8,1695.3,0.15]
[1659240830930,9.1099,1695.8,1695.3,0.15]
[1659240831273,9.7099,1695.8,1695.3,0.15]
[1659240831880,13.2099,1695.8,1695.1,3.00099929]
[1659240832049,13.2099,1695.8,1695.1,2.95099929]
[1659240833175,0.29176178,1695.7,1695.1,2.95099929]
[1659240833566,3.79176178,1695.7,1695.1,2.95353434]
[1659240833965,0.29176178,1695.7,1695.1,2.95353434]
[1659240834548,0.29176178,1695.7,1695.1,2.95099929]
[1659240834873,0.29176178,1695.7,1695.1,2.95353441]
[1659240835072,0.29176178,1695.7,1695.1,3.10353441]
[1659240835786,3.79176178,1695.7,1695.1,2.95099929]
[1659240836113,0.29176178,1695.7,1695.1,2.95099929]
[1659240836325,0.29176178,1695.7,1695.1,2.95353441]
[1659240837178,0.29176178,1695.7,1695.1,2.95099929]
[1659240838526,3.79176178,1695.7,1695.1,0.05295257]
[1659240838814,0.29176178,1695.7,1695.1,0.05295257]
[1659240839913,3.79176178,1695.7,1695.1,0.05295257]
[1659240840126,0.29176178,1695.7,1695.1,0.05295257]
[1659240841248,12.3764,1695.8,1695.3,0.15]
[1659240841459,12.3764,1695.8,1695.4,2.95099929]
[1659240841460,9.1555,1695.8,1695.4,2.95099929]
[1659240841755,0.05,1696.0,1695.4,2.95099929]
[1659240841756,0.05,1696.0,1695.4,9.76786078]
[1659240841967,0.4426,1696.2,1695.4,9.76786078]
[1659240841968,0.4926,1696.2,1695.4,9.76786078]
[1659240842114,9.34064672,1696.2,1695.4,6.26786078]
[1659240842318,12.84064672,1696.2,1695.4,2.95099929]
[1659240842515,3.5,1696.1,1695.4,10.99919929]
[1659240842945,6.69804672,1696.1,1695.4,8.10115257]
[1659240843138,3.5,1696.0,1695.4,8.10115257]
[1659240843315,6.99804672,1696.1,1695.4,0.05295257]
[1659240843716,6.39804672,1696.0,1695.4,0.05295257]
[1659240843964,2.89804672,1696.0,1695.4,0.05295257]
[1659240844141,4.1,1696.1,1695.4,0.05295257]
[1659240844142,6.99804672,1696.1,1695.4,0.05295257]
[1659240844916,0.29176178,1696.0,1695.4,0.05295257]
[1659240845374,0.73446178,1696.0,1695.4,0.05295257]
[1659240845654,4.23446178,1696.0,1695.4,0.05295257]
[1659240845817,0.73446178,1696.0,1695.4,0.05295257]
[1659240846260,7.1325085,1696.0,1695.4,0.05295257]
[1659240846460,3.6325085,1696.0,1695.4,0.05295257]
[1659240847083,3.6325085,1696.0,1695.4,0.05031882]
[1659240848166,7.1325085,1696.0,1695.4,0.05031882]
[1659240848349,3.6325085,1696.0,1695.4,0.05031882]
[1659240851810,0.73446178,1696.0,1695.4,0.05031882]
[1659240851985,0.29176178,1696.0,1695.4,0.05031882]
[1659240856717,3.79176178,1696.0,1695.4,0.05031882]
[1659240856919,4.23446178,1696.0,1695.4,0.05031882]
[1659240857158,3.2336,1695.9,1695.4,0.05031882]
[1659240857627,3.8336,1695.9,1695.4,0.05031882]
[1659240858613,6.6631,1695.9,1695.4,0.05031882]
[1659240859056,0.00263375,1695.8,1695.4,0.05031882]
[1659240860354,0.44533375,1695.8,1695.1,0.05]
[1659240860538,3.74533375,1695.8,1695.3,0.00214175]
[1659240860737,3.74533375,1695.8,1695.3,2.90018847]
[1659240860936,3.30263375,1695.8,1695.3,2.90018847]
[1659240861156,0.30263375,1695.8,1695.3,2.90018847]
[1659240861320,0.30263375,1695.8,1695.3,2.89804672]
[1659240862150,0.30263375,1695.8,1695.2,0.05246063]
[1659240862151,0.30263375,1695.8,1695.2,2.95050735]
[1659240862772,0.30263375,1695.8,1695.2,2.94836554]
[1659240865889,3.80263375,1695.8,1695.2,2.94836554]
[1659240866038,4.24533375,1695.8,1695.2,2.94836554]
[1659240866241,0.74533375,1695.8,1695.2,2.94836554]
[1659240866700,0.30263375,1695.8,1695.2,2.94836554]
[1659240867953,3.80263375,1695.8,1695.2,2.94836554]
[1659240868154,0.30263375,1695.8,1695.2,2.94836554]
[1659240869409,0.30263375,1695.8,1695.2,0.05031882]
[1659240870177,3.15673375,1695.8,1695.2,0.05031882]
[1659240872870,6.65673375,1695.8,1695.2,0.05031882]
[1659240876927,3.15673375,1695.8,1695.2,0.05031882]
[1659240879241,6.05478047,1695.8,1695.2,0.05031882]
[1659240879618,9.55478047,1695.8,1695.2,0.05031882]
[1659240880222,10.14074672,1695.7,1695.0,0.10500724]
[1659240880514,10.14074672,1695.7,1695.0,0.05196322]
[1659240880515,6.9898085,1695.6,1695.0,0.05196322]
[1659240880714,6.64084672,1695.5,1695.0,0.05196322]
[1659240881101,0.29176178,1695.4,1695.0,0.05196322]
[1659240881712,3.70222226,1695.4,1695.0,0.05196322]
[1659240881913,2.89804672,1695.3,1695.0,0.05196322]
[1659240882096,7.14512213,1695.2,1695.0,0.00096322]
[1659240882316,6.0,1695.1,1695.0,0.00096322]
[1659240882737,12.0143,1695.1,1695.0,0.00096322]
[1659240883112,9.0143,1695.1,1695.0,0.00096322]
[1659240885529,2.7143,1695.1,1695.0,0.63496322]
[1659240886331,0.59176178,1695.2,1695.0,0.63496322]
[1659240886532,6.8514,1695.3,1695.0,0.63496322]
[1659240886776,3.8514,1695.3,1695.0,0.63496322]
[1659240886942,3.2514,1695.3,1695.0,0.63496322]
[1659240887146,3.2514,1695.3,1695.0,0.00096322]
[1659240887434,3.2514,1695.3,1695.0,0.05128204]
[1659240891894,3.54316178,1695.3,1695.0,0.00096322]
[1659240892817,8.04316178,1695.3,1695.0,0.00096322]
[1659240893212,8.64316178,1695.3,1695.0,0.00096322]
[1659240893718,11.53706178,1695.3,1695.0,0.00096322]
[1659240896778,15.03706178,1695.3,1695.0,0.00096322]
[1659240897075,11.53706178,1695.3,1695.0,0.00096322]
[1659240901014,11.58706178,1695.3,1695.0,0.00096322]
[1659240901184,0.89176178,1695.3,1695.0,0.00096322]
[1659240901511,9.3915,1695.6,1695.0,2.89900994]
[1659240901665,12.2741,1695.6,1695.0,2.89900994]
[1659240901870,12.27673375,1695.6,1695.0,2.89900994]
[1659240902672,0.00230482,1695.0,1694.8,10.5755]
[1659240902879,0.00230482,1695.0,1694.8,13.27354672]
[1659240903173,0.00230482,1695.0,1694.8,10.73314672]
[1659240904101,0.00230482,1695.0,1694.9,0.784]
[1659240904326,0.00230482,1695.0,1694.9,3.68204672]
[1659240904628,0.00230482,1695.0,1694.9,3.73236554]
[1659240905995,0.00230482,1695.0,1694.9,0.20031882]
[1659240906202,0.00230482,1695.0,1694.9,0.05031882]
[1659240906818,0.00230482,1695.0,1694.9,0.68431882]
[1659240907230,0.00230482,1695.0,1694.9,0.05031882]
[1659240909296,0.41194983,1695.0,1694.9,0.05031882]
[1659240912643,0.41194983,1695.0,1694.5,8.4215]
[1659240912644,0.41194983,1695.0,1694.5,8.2715]
[1659240912802,0.41194983,1695.0,1694.6,2.89804672]
[1659240915613,0.41194983,1695.0,1694.6,6.39804672]
[1659240915815,0.41194983,1695.0,1694.6,2.89804672]
[1659240916630,0.36194983,1695.0,1694.6,2.89804672]
[1659240921260,0.36194983,1695.0,1694.8,0.15]
[1659240921411,0.36194983,1695.0,1694.8,3.04804672]
[1659240923762,0.36194983,1695.0,1694.8,3.09836554]
[1659240924352,0.36194983,1695.0,1694.8,2.94836554]
[1659240924857,0.36194983,1695.0,1694.9,3.04804672]
[1659240925061,0.36194983,1695.0,1694.9,6.56549482]
[1659240926790,0.36194983,1695.0,1694.9,10.06549482]
[1659240927009,0.36194983,1695.0,1694.9,6.74804672]
[1659240927161,0.36194983,1695.0,1694.9,2.89804672]
[1659240930796,0.36194983,1695.0,1694.8,0.05031882]
[1659240930996,0.36194983,1695.0,1694.8,3.05031882]
[1659240931397,0.36194983,1695.0,1694.8,0.05031882]
[1659240939071,0.36194983,1695.0,1694.6,0.00214612]